lending/lending_fUSD_20250122
["ID","MTS","AMOUNT","RATE_DAILY","PERIOD"]
[350019976,1737571832109,-500.0,0.00019897,2]
[350019977,1737571832119,-500.0,0.00019897,2]
[350019978,1737571832128,-500.0,0.00019897,2]
[350019979,1737571832138,-500.0,0.00019897,2]
[350019980,1737571832147,-500.0,0.00019897,2]
[350019981,1737571832157,-500.0,0.00019897,2]
[350019982,1737571832166,-500.0,0.00019897,2]
[350019983,1737571832175,-666.53,0.00019897,2]
[350019985,1737571832185,-500.0,0.00019897,2]
[350019987,1737571832194,-500.0,0.00019897,2]
[350019989,1737571832203,-500.0,0.00019897,2]
[350019991,1737571832212,-500.0,0.00019897,2]
[350019992,1737571832221,-500.0,0.00019897,2]
[350019993,1737571832230,-500.0,0.00019897,2]
[350019994,1737571832239,-500.0,0.00019897,2]
[350019995,1737571832249,-866.23,0.00019897,2]
[350019996,1737571832258,-500.0,0.00019897,2]
[350019997,1737571832268,-500.0,0.00019897,2]
[350019998,1737571832277,-739.87,0.00019897,2]
[350019999,1737571832286,-500.0,0.00019897,2]
[350020000,1737571832295,-661.3,0.00019897,2]
[350020001,1737571832304,-500.0,0.00019897,2]
[350020002,1737571832314,-500.0,0.00019897,2]
[350020003,1737571832324,-513.69794764,0.00019897,2]
[350020004,1737571832333,-500.0,0.00019897,2]
[350020005,1737571832342,-505.65230169,0.00019897,2]
[350020006,1737571832352,-941.66,0.00019897,2]
[350020007,1737571832361,-521.15,0.00019897,2]
[350020008,1737571832371,-500.0,0.00019897,2]
[350020009,1737571832380,-500.0,0.00019897,2]
[350020010,1737571832388,-500.0,0.00019897,2]
[350020011,1737571832398,-500.0,0.00019897,2]
[350020012,1737571832407,-671.01,0.00019897,2]
[350020013,1737571832416,-500.0,0.00019897,2]
[350020014,1737571832425,-500.0,0.00019897,2]
[350020015,1737571832434,-500.0,0.00019897,2]
[350020016,1737571832443,-505.43611006,0.00019897,2]
[350020017,1737571832453,-500.0,0.00019897,2]
[350020018,1737571832462,-500.0,0.00019897,2]
[350020019,1737571832471,-500.0,0.00019897,2]
[350020020,1737571832479,-522.17809422,0.00019897,2]
[350020021,1737571832489,-500.0,0.00019897,2]
[350020022,1737571832498,-500.0,0.00019897,2]
[350020023,1737571832507,-429.18610459,0.00019897,2]
[350020024,1737571832516,-338.35049807,0.00019897,2]
[350020025,1737571832525,-500.0,0.00019897,2]
[350020026,1737571832535,-500.0,0.00019897,2]
[350020027,1737571832544,-500.0,0.00019897,2]
[350020028,1737571832552,-500.0,0.00019897,2]
[350020029,1737571832562,-500.0,0.00019897,2]
[350020030,1737571832571,-500.0,0.00019897,2]
[350020031,1737571832581,-1162.08,0.00019897,2]
[350020032,1737571832590,-500.0,0.00019897,2]
[350020033,1737571832599,-500.0,0.00019897,2]
[350020034,1737571832608,-500.0,0.00019897,2]
[350020035,1737571832617,-423.66024233,0.00019897,2]
[350020036,1737571832626,-500.0,0.00019897,2]
[350020037,1737571832635,-500.0,0.00019897,2]
[350020038,1737571832644,-825.23,0.00019897,2]
[350020039,1737571832653,-500.0,0.00019897,2]
[350020040,1737571832662,-500.0,0.00019897,2]
[350020041,1737571832672,-1422.23,0.00019897,2]
[350020042,1737571832680,-500.0,0.00019897,2]
[350020043,1737571832690,-618.1967881,0.00019897,2]
[350020044,1737571832699,-280.22371811,0.00019897,2]
[350020045,1737571832708,-608.06,0.00019897,2]
[350020046,1737571832717,-500.0,0.00019897,2]
[350020047,1737571832726,-508.71621178,0.00019897,2]
[350020048,1737571832735,-500.0,0.00019897,2]
[350020049,1737571832744,-500.0,0.00019897,2]
[350020050,1737571832753,-500.0,0.00019897,2]
[350020051,1737571832762,-505.90113846,0.00019897,2]
[350020052,1737571832771,-1049.97,0.00019897,2]
[350020053,1737571832780,-500.0,0.00019897,2]
[350020054,1737571832789,-500.0,0.00019897,2]
[350020055,1737571832798,-227267.568,0.00019898,2]
[350020056,1737571832808,-3251.1133,0.000199,2]
[350020057,1737571832817,-1915.93083914,0.000199,2]
[350020058,1737571832827,-417.06062667,0.00019968,2]
[350020059,1737571832836,-1915.93083905,0.00019969,2]
[350020060,1737571832845,-333.29,0.00019988,2]
[350020061,1737571832854,-503.75850882,0.00019998,2]
[350020062,1737571832863,-500.0,0.00019998,2]
[350020063,1737571832872,-500.0,0.00019998,2]
[350020064,1737571832881,-504.17519906,0.00019998,2]
[350020065,1737571832890,-500.0,0.00019998,2]
[350020066,1737571832899,-500.0,0.00019998,2]
[350020067,1737571832908,-500.0,0.00019998,2]
[350020068,1737571832917,-500.0,0.00019998,2]
[350020069,1737571832926,-500.0,0.00019998,2]
[350020070,1737571832935,-500.0,0.00019998,2]
[350020071,1737571832945,-500.0,0.00019998,2]
[350020072,1737571832954,-500.0,0.00019998,2]
[350020073,1737571832963,-500.0,0.00019998,2]
[350020074,1737571832972,-500.0,0.00019998,2]
[350020075,1737571832981,-508.02660484,0.00019998,2]
[350020076,1737571832990,-500.0,0.00019998,2]
[350020077,1737571833189,-500.0,0.00019998,2]
[350020078,1737571833199,-500.0,0.00019998,2]
[350020079,1737571833209,-500.0,0.00019998,2]
[350020080,1737571833219,-500.0,0.00019998,2]
[350020081,1737571833228,-503.03798398,0.00019998,2]
[350020082,1737571833238,-500.0,0.00019998,2]
[350020083,1737571833247,-500.0,0.00019998,2]
[350020084,1737571833256,-500.0,0.00019998,2]
[350020085,1737571833265,-500.0,0.00019998,2]
[350020086,1737571833275,-500.0,0.00019998,2]
[350020087,1737571833284,-500.0,0.00019998,2]
[350020088,1737571833293,-500.0,0.00019998,2]
[350020089,1737571833303,-500.0,0.00019998,2]
[350020090,1737571833314,-500.0,0.00019998,2]
[350020091,1737571833323,-500.0,0.00019998,2]
[350020092,1737571833332,-204.99337637,0.00019998,2]
[350020093,1737571833342,-500.0,0.00019998,2]
[350020094,1737571833351,-502.52577859,0.00019998,2]
[350020095,1737571833361,-500.0,0.00019998,2]
[350020096,1737571833370,-500.0,0.00019998,2]
[350020097,1737571833379,-500.0,0.00019998,2]
[350020098,1737571833389,-500.0,0.00019998,2]
[350020099,1737571833398,-500.0,0.00019998,2]
[350020100,1737571833409,-500.0,0.00019998,2]
[350020101,1737571833418,-500.0,0.00019998,2]
[350020102,1737571833427,-500.0,0.00019998,2]
[350020103,1737571833436,-500.0,0.00019998,2]
[350020104,1737571833445,-500.0,0.00019998,2]
[350020105,1737571833454,-500.0,0.00019998,2]
[350020106,1737571833463,-500.0,0.00019998,2]
[350020107,1737571833472,-500.0,0.00019998,2]
[350020108,1737571833481,-500.0,0.00019998,2]
[350020109,1737571833492,-500.0,0.00019998,2]
[350020110,1737571833501,-500.0,0.00019998,2]
[350020111,1737571833511,-500.0,0.00019998,2]
[350020112,1737571833520,-500.0,0.00019998,2]
[350020113,1737571833529,-500.0,0.00019998,2]
[350020114,1737571833538,-500.0,0.00019998,2]
[350020115,1737571833547,-500.0,0.00019998,2]
[350020116,1737571833558,-500.0,0.00019998,2]
[350020117,1737571833567,-507.80984,0.00019998,2]
[350020118,1737571833576,-500.0,0.00019998,2]
[350020119,1737571833586,-500.0,0.00019998,2]
[350020120,1737571833595,-500.0,0.00019998,2]
[350020121,1737571833604,-500.0,0.00019998,2]
[350020122,1737571833614,-500.0,0.00019998,2]
[350020123,1737571833623,-155.67239,0.00019998,2]
[350020124,1737571833632,-500.0,0.00019998,2]
[350020125,1737571833642,-500.0,0.00019998,2]
[350020126,1737571833651,-500.0,0.00019998,2]
[350020127,1737571833660,-162.298521,0.00019998,2]
[350020128,1737571833669,-500.0,0.00019998,2]
[350020129,1737571833678,-500.0,0.00019998,2]
[350020130,1737571833687,-500.0,0.00019998,2]
[350020131,1737571833696,-500.0,0.00019998,2]
[350020132,1737571833705,-421.688304,0.00019998,2]
[350020133,1737571833715,-500.0,0.00019998,2]
[350020134,1737571833724,-500.0,0.00019998,2]
[350020135,1737571833733,-500.0,0.00019998,2]
[350020136,1737571833742,-500.0,0.00019998,2]
[350020137,1737571833751,-500.0,0.00019998,2]
[350020138,1737571833760,-500.0,0.00019998,2]
[350020139,1737571833770,-500.0,0.00019998,2]
[350020140,1737571833779,-500.0,0.00019998,2]
[350020141,1737571833788,-500.0,0.00019998,2]
[350020142,1737571833797,-500.0,0.00019998,2]
[350020143,1737571833807,-500.0,0.00019998,2]
[350020144,1737571833817,-500.0,0.00019998,2]
[350020145,1737571833827,-500.0,0.00019998,2]
[350020146,1737571833836,-500.0,0.00019998,2]
[350020147,1737571833845,-500.0,0.00019998,2]
[350020148,1737571833854,-500.0,0.00019998,2]
[350020149,1737571833864,-500.0,0.00019998,2]
[350020150,1737571833873,-500.0,0.00019998,2]
[350020151,1737571833887,-510.0116926,0.00019998,2]
[350020152,1737571833897,-500.0,0.00019998,2]
[350020153,1737571833906,-500.0,0.00019998,2]
[350020154,1737571833917,-500.0,0.00019998,2]
[350020155,1737571833927,-500.0,0.00019998,2]
[350020156,1737571833936,-500.0,0.00019998,2]
[350020157,1737571833945,-500.0,0.00019998,2]
[350020158,1737571833955,-500.0,0.00019998,2]
[350020159,1737571833964,-500.0,0.00019998,2]
[350020160,1737571833974,-500.0,0.00019998,2]
[350020161,1737571833983,-500.0,0.00019998,2]
[350020162,1737571833993,-500.0,0.00019998,2]
[350020163,1737571834002,-500.0,0.00019998,2]
[350020164,1737571834011,-500.0,0.00019998,2]
[350020165,1737571834021,-557.96,0.00019998,2]
[350020166,1737571834031,-154.167335,0.00019998,2]
[350020167,1737571834040,-500.0,0.00019998,2]
[350020168,1737571834050,-500.0,0.00019998,2]
[350020169,1737571834063,-500.0,0.00019998,2]
[350020170,1737571834073,-500.0,0.00019998,2]
[350020171,1737571834083,-500.0,0.00019998,2]
[350020172,1737571834093,-500.0,0.00019998,2]
[350020173,1737571834102,-500.0,0.00019998,2]
[350020174,1737571834112,-500.0,0.00019998,2]
[350020175,1737571834121,-726.99,0.00019998,2]
[350020176,1737571834131,-500.0,0.00019998,2]
[350020177,1737571834142,-500.0,0.00019998,2]
[350020178,1737571834153,-198.889778,0.00019998,2]
[350020179,1737571834162,-269.33802283,0.00019998,2]
[350020180,1737571834172,-500.0,0.00019998,2]
[350020181,1737571834182,-500.0,0.00019998,2]
[350020182,1737571834191,-500.0,0.00019998,2]
[350020183,1737571834200,-500.0,0.00019998,2]
[350020184,1737571834210,-737.19,0.00019998,2]
[350020185,1737571834221,-1138.94,0.00019998,2]
[350020186,1737571834230,-865.26,0.00019998,2]
[350020187,1737571834239,-500.0,0.00019998,2]
[350020188,1737571834249,-500.0,0.00019998,2]
[350020189,1737571834259,-515.74284783,0.00019998,2]
[350020190,1737571834268,-500.0,0.00019998,2]
[350020191,1737571834278,-500.0,0.00019998,2]
[350020192,1737571834288,-500.0,0.00019998,2]
[350020193,1737571834298,-500.0,0.00019998,2]
[350020194,1737571834309,-706.95,0.00019998,2]
[350020195,1737571834319,-589.87,0.00019998,2]
[350020196,1737571834329,-797.11,0.00019998,2]
[350020197,1737571834339,-500.0,0.00019998,2]
[350020198,1737571834348,-500.0,0.00019998,2]
[350020199,1737571834358,-616.96,0.00019998,2]
[350020200,1737571834367,-500.0,0.00019998,2]
[350020201,1737571834376,-500.0,0.00019998,2]
[350020202,1737571834386,-615.5,0.00019998,2]
[350020203,1737571834395,-500.0,0.00019998,2]
[350020204,1737571834404,-500.0,0.00019998,2]
[350020205,1737571834414,-500.0,0.00019998,2]
[350020206,1737571834424,-500.0,0.00019998,2]
[350020207,1737571834433,-1074.44,0.00019998,2]
[350020208,1737571834443,-500.0,0.00019998,2]
[350020209,1737571834453,-610.0,0.00019998,2]
[350020210,1737571834462,-500.0,0.00019998,2]
[350020211,1737571834472,-500.0,0.00019998,2]
[350020212,1737571834481,-500.0,0.00019998,2]
[350020213,1737571834491,-1159.26,0.00019998,2]
[350020214,1737571834500,-500.0,0.00019998,2]
[350020215,1737571834510,-500.0,0.00019998,2]
[350020216,1737571834520,-1301.83,0.00019998,2]
[350020217,1737571834529,-500.0,0.00019998,2]
[350020218,1737571834538,-556.35,0.00019998,2]
[350020219,1737571834548,-500.0,0.00019998,2]
[350020220,1737571834558,-500.0,0.00019998,2]
[350020221,1737571834568,-500.0,0.00019998,2]
[350020222,1737571834578,-1322.01,0.00019998,2]
[350020223,1737571834587,-500.0,0.00019998,2]
[350020224,1737571834597,-500.0,0.00019998,2]
[350020225,1737571834607,-500.0,0.00019998,2]
[350020226,1737571834616,-500.0,0.00019998,2]
[350020227,1737571834626,-500.0,0.00019998,2]
[350020228,1737571834635,-500.0,0.00019998,2]
[350020229,1737571834645,-500.0,0.00019998,2]
[350020230,1737571834654,-500.0,0.00019998,2]
[350020231,1737571834664,-500.0,0.00019998,2]
[350020232,1737571834673,-500.0,0.00019998,2]
[350020233,1737571834682,-525.7,0.00019998,2]
[350020234,1737571834692,-500.0,0.00019998,2]
[350020235,1737571834702,-536.14,0.00019998,2]
[350020236,1737571834711,-500.0,0.00019998,2]
[350020237,1737571834721,-1182.89,0.00019998,2]
[350020238,1737571834731,-500.0,0.00019998,2]
[350020239,1737571834740,-500.0,0.00019998,2]
[350020240,1737571834749,-500.0,0.00019998,2]
[350020241,1737571834759,-500.0,0.00019998,2]
[350020242,1737571834769,-500.0,0.00019998,2]
[350020243,1737571834778,-500.0,0.00019998,2]
[350020244,1737571834788,-500.0,0.00019998,2]
[350020245,1737571834797,-500.0,0.00019998,2]
[350020246,1737571834806,-500.0,0.00019998,2]
[350020247,1737571834816,-652.61,0.00019998,2]
[350020248,1737571834825,-500.0,0.00019998,2]
[350020249,1737571834835,-500.0,0.00019998,2]
[350020250,1737571834844,-500.0,0.00019998,2]
[350020251,1737571834853,-500.0,0.00019998,2]
[350020252,1737571834862,-500.0,0.00019998,2]
[350020253,1737571834872,-500.0,0.00019998,2]
[350020254,1737571834881,-500.0,0.00019998,2]
[350020255,1737571834890,-500.0,0.00019998,2]
[350020256,1737571834899,-500.0,0.00019998,2]
[350020257,1737571834908,-500.0,0.00019998,2]
[350020258,1737571834918,-500.0,0.00019998,2]
[350020259,1737571834927,-500.0,0.00019998,2]
[350020260,1737571834936,-500.0,0.00019998,2]
[350020261,1737571834946,-500.0,0.00019998,2]
[350020262,1737571834955,-809.54,0.00019998,2]
[350020263,1737571834964,-500.0,0.00019998,2]
[350020264,1737571834973,-500.0,0.00019998,2]
[350020265,1737571834981,-500.0,0.00019998,2]
[350020266,1737571834990,-500.0,0.00019998,2]
[350020267,1737571834999,-500.0,0.00019998,2]
[350020268,1737571835008,-500.0,0.00019998,2]
[350020269,1737571835017,-213.98416567,0.00019998,2]
[350020270,1737571835026,-500.0,0.00019998,2]
[350020271,1737571835034,-500.0,0.00019998,2]
[350020272,1737571835043,-501.30955774,0.00019998,2]
[350020273,1737571835053,-546.56,0.00019998,2]
[350020274,1737571835066,-500.0,0.00019998,2]
[350020275,1737571835074,-500.0,0.00019998,2]
[350020276,1737571835086,-500.0,0.00019998,2]
[350020277,1737571835095,-500.0,0.00019998,2]
[350020278,1737571835104,-542.92,0.00019998,2]
[350020279,1737571835113,-730.71,0.00019998,2]
[350020280,1737571835121,-500.0,0.00019998,2]
[350020281,1737571835130,-500.0,0.00019998,2]
[350020282,1737571835139,-1145.41,0.00019998,2]
[350020283,1737571835148,-500.0,0.00019998,2]
[350020284,1737571835157,-2365.89,0.00019998,2]
[350020285,1737571835166,-354.12997713,0.00019998,2]
[350020286,1737571835182,-266.77002287,0.00019998,2]
[350020287,1737571835191,-500.0,0.00019998,2]
[350020288,1737571835200,-500.0,0.00019998,2]
[350020289,1737571835209,-500.0,0.00019998,2]
[350020290,1737571835218,-296.75082272,0.00019999,2]
[350020291,1737571835229,-203.24917728,0.00019999,2]
[350020292,1737571835238,-500.0,0.00019999,2]
[350020293,1737571835247,-500.0,0.00019999,2]
[350020294,1737571835256,-500.0,0.00019999,2]
[350020295,1737571835265,-500.0,0.00019999,2]
[350020296,1737571835274,-500.0,0.00019999,2]
[350020297,1737571835283,-500.0,0.00019999,2]
[350020298,1737571835292,-500.0,0.00019999,2]
[350020299,1737571835301,-500.0,0.00019999,2]
[350020300,1737571835310,-500.0,0.00019999,2]
[350020301,1737571835319,-500.0,0.00019999,2]
[350020302,1737571835330,-500.0,0.00019999,2]
[350020303,1737571835339,-512.26347341,0.00019999,2]
[350020304,1737571835347,-500.0,0.00019999,2]
[350020305,1737571835357,-500.0,0.00019999,2]
[350020306,1737571835366,-500.0,0.00019999,2]
[350020307,1737571835374,-245.40315533,0.00019999,2]
[350020308,1737571835436,-254.59684467,0.00019999,2]
[350020309,1737571835446,-287.69357273,0.00019999,2]
[350020310,1737571835455,-569.31170465,0.00019999,2]
[350020311,1737571835464,-88.24619795,0.00019999,2]
[350020312,1737571835483,-411.75380205,0.00019999,2]
[350020313,1737571835492,-488.24619795,0.00019999,2]
[350020314,1737571835504,-11.75380205,0.00019999,2]
[350020315,1737571835513,-500.0,0.00019999,2]
[350020316,1737571835522,-433.73234482,0.00019999,2]
[350020317,1737571835534,-500.0,0.00019999,2]
[350020318,1737571835546,-500.0,0.00019999,2]
[350020319,1737571835555,-0.07335491,0.00019999,2]
[350020320,1737571835567,-340.34,0.00019999,2]
[350020324,1737571837402,-316.2698799,0.00019897,2]
[350020325,1737571837511,-183.7301201,0.00019897,2]
[350020326,1737571837521,-133.48367935,0.00019897,2]
[350020327,1737571837572,-366.51632065,0.00019897,2]
[350020328,1737571837583,-159.58664509,0.00019999,2]
[350020329,1737571837593,-500.0,0.00019999,2]
[350020330,1737571837602,-500.0,0.00019999,2]
[350020331,1737571837611,-500.0,0.00019999,2]
[350020332,1737571837621,-500.0,0.00019999,2]
[350020333,1737571837630,-500.0,0.00019999,2]
[350020334,1737571837639,-500.0,0.00019999,2]
[350020335,1737571837649,-500.0,0.00019999,2]
[350020336,1737571837659,-500.0,0.00019999,2]
[350020337,1737571837669,-595.13,0.00019999,2]
[350020338,1737571837678,-500.0,0.00019999,2]
[350020339,1737571837687,-500.0,0.00019999,2]
[350020340,1737571837696,-265.26626269,0.00019999,2]
[350020341,1737571837705,-212.15077149,0.00019999,2]
[350020342,1737571837733,-287.84922851,0.00019999,2]
[350020344,1737571837742,-500.0,0.00019999,2]
[350020346,1737571837751,-500.0,0.00019999,2]
[350020348,1737571837760,-500.0,0.00019999,2]
[350020350,1737571837770,-500.0,0.00019999,2]
[350020352,1737571837780,-500.0,0.00019999,2]
[350020354,1737571837788,-500.0,0.00019999,2]
[350020356,1737571837797,-500.0,0.00019999,2]
[350020358,1737571837807,-500.0,0.00019999,2]
[350020360,1737571837816,-500.0,0.00019999,2]
[350020361,1737571837825,-500.0,0.00019999,2]
[350020363,1737571837834,-500.0,0.00019999,2]
[350020366,1737571837845,-455.65077249,0.00019999,2]
[350020539,1737571839568,-317.45,0.00019998,2]
[350020557,1737571839736,-182.55,0.00019998,2]
[350020559,1737571839746,-44.34922751,0.00019999,2]
[350020561,1737571839756,-500.0,0.00019999,2]
[350020563,1737571839765,-500.0,0.00019999,2]
[350020564,1737571839775,-546.52227783,0.00019999,2]
[350020566,1737571839784,-500.0,0.00019999,2]
[350020568,1737571839793,-500.0,0.00019999,2]
[350020570,1737571839802,-500.0,0.00019999,2]
[350020572,1737571839811,-500.0,0.00019999,2]
[350020574,1737571839821,-500.0,0.00019999,2]
[350020576,1737571839830,-500.0,0.00019999,2]
[350020578,1737571839839,-508.85299448,0.00019999,2]
[350020580,1737571839847,-500.0,0.00019999,2]
[350020582,1737571839856,-500.0,0.00019999,2]
[350020584,1737571839865,-502.26465659,0.00019999,2]
[350020585,1737571839874,-500.0,0.00019999,2]
[350020587,1737571839884,-500.0,0.00019999,2]
[350020589,1737571839893,-500.0,0.00019999,2]
[350020591,1737571839902,-500.0,0.00019999,2]
[350020592,1737571839911,-500.0,0.00019999,2]
[350020594,1737571839920,-402.74054309,0.00019999,2]
[350020596,1737571839929,-209.42619493,0.00019999,2]
[350020598,1737571839941,-290.57380507,0.00019999,2]
[350020600,1737571839950,-500.0,0.00019999,2]
[350020602,1737571839959,-500.0,0.00019999,2]
[350020604,1737571839968,-438.08,0.00019999,2]
[350020605,1737571839978,-500.0,0.00019999,2]
[350020607,1737571839987,-500.0,0.00019999,2]
[350020609,1737571839996,-500.0,0.00019999,2]
[350020611,1737571840005,-500.0,0.00019999,2]
[350020613,1737571840015,-500.0,0.00019999,2]
[350020615,1737571840023,-500.0,0.00019999,2]
[350020617,1737571840032,-500.0,0.00019999,2]
[350020619,1737571840041,-500.0,0.00019999,2]
[350020621,1737571840050,-500.0,0.00019999,2]
[350020639,1737571840227,-217.67646374,0.00019999,2]
[350020641,1737571840238,-468.15169156,0.00019999,2]
[350020643,1737571840247,-500.0,0.00019999,2]
[350020645,1737571840256,-251.6592935,0.00019999,2]
[350020744,1737571842537,-500.0,0.00019998,2]
[350020745,1737571842547,-500.0,0.00019998,2]
[350020746,1737571842556,-248.3407065,0.00019999,2]
[350020747,1737571842568,-8717.36091199,0.00020032,2]
[350020748,1737571842577,-4954.19479825,0.00020032,2]
[350020749,1737571842586,-1915.93083905,0.00020038,2]
[350020750,1737571842595,-1915.93083905,0.00020107,2]
[350020751,1737571842605,-809.0,0.00020143,2]
[350020752,1737571842615,-16072.1648,0.00020171,2]
[350020753,1737571842624,-471.98757497,0.00020171,2]
[350020754,1737571842635,-500.0,0.00020171,2]
[350020755,1737571842645,-500.0,0.00020171,2]
[350020756,1737571842656,-500.0,0.00020171,2]
[350020757,1737571842666,-544.47744333,0.00020171,2]
[350020758,1737571842675,-500.0,0.00020171,2]
[350020759,1737571842684,-666.53,0.00020171,2]
[350020760,1737571842693,-500.0,0.00020171,2]
[350020761,1737571842703,-866.23,0.00020171,2]
[350020762,1737571842712,-500.0,0.00020171,2]
[350020763,1737571842722,-739.87,0.00020171,2]
[350020764,1737571842733,-500.0,0.00020171,2]
[350020765,1737571842743,-661.3,0.00020171,2]
[350020766,1737571842752,-500.0,0.00020171,2]
[350020767,1737571842762,-941.66,0.00020171,2]
[350020768,1737571842772,-521.15,0.00020171,2]
[350020769,1737571842781,-500.0,0.00020171,2]
[350020770,1737571842790,-500.0,0.00020171,2]
[350020771,1737571842800,-671.01,0.00020171,2]
[350020772,1737571842809,-500.0,0.00020171,2]
[350020773,1737571842819,-500.0,0.00020171,2]
[350020774,1737571842829,-500.0,0.00020171,2]
[350020775,1737571842839,-500.0,0.00020171,2]
[350020776,1737571842849,-500.0,0.00020171,2]
[350020777,1737571842859,-1162.08,0.00020171,2]
[350020778,1737571842869,-500.0,0.00020171,2]
[350020779,1737571842878,-500.0,0.00020171,2]
[350020780,1737571842887,-500.0,0.00020171,2]
[350020781,1737571842896,-825.23,0.00020171,2]
[350020782,1737571842905,-500.0,0.00020171,2]
[350020784,1737571842915,-1422.23,0.00020171,2]
[350020786,1737571842923,-608.06,0.00020171,2]
[350020788,1737571842933,-500.0,0.00020171,2]
[350020789,1737571842942,-500.0,0.00020171,2]
[350020790,1737571842951,-500.0,0.00020171,2]
[350020791,1737571842960,-1049.97,0.00020171,2]
[350020792,1737571842969,-500.0,0.00020171,2]
[350020793,1737571842978,-3000.0,0.00020173,2]
[350020794,1737571842987,-1915.93083905,0.00020176,2]
[350020795,1737571842997,-1915.93083905,0.00020245,2]
[350020796,1737571843006,-8717.36091199,0.00020266,2]
[350020797,1737571843017,-4954.19479825,0.00020266,2]
[350020799,1737571843026,-676.96,0.00020271,2]
[350020801,1737571843035,-875.26,0.00020271,2]
[350020803,1737571843044,-500.0,0.00020271,2]
[350020805,1737571843054,-609.78,0.00020271,2]
[350020807,1737571843068,-536.46,0.00020271,2]
[350020809,1737571843077,-500.0,0.00020271,2]
[350020811,1737571843087,-526.21,0.00020271,2]
[350020813,1737571843096,-500.0,0.00020271,2]
[350020815,1737571843106,-856.03,0.00020271,2]
[350020817,1737571843115,-1061.43,0.00020271,2]
[350020819,1737571843124,-500.0,0.00020272,2]
[350020821,1737571843134,-500.0,0.00020272,2]
[350020823,1737571843144,-500.0,0.00020272,2]
[350020825,1737571843154,-500.0,0.00020272,2]
[350020827,1737571843163,-500.0,0.00020272,2]
[350020829,1737571843172,-500.0,0.00020272,2]
[350020831,1737571843181,-509.5065087,0.00020272,2]
[350020833,1737571843190,-500.0,0.00020272,2]
[350020834,1737571843199,-500.0,0.00020272,2]
[350020836,1737571843208,-500.0,0.00020272,2]
[350020838,1737571843217,-465.30992431,0.00020272,2]
[350020840,1737571843226,-648.68353685,0.00020272,2]
[350020842,1737571843235,-500.0,0.00020272,2]
[350020844,1737571843244,-500.0,0.00020272,2]
[350020846,1737571843253,-507.80984,0.00020272,2]
[350020848,1737571843263,-500.0,0.00020272,2]
[350020850,1737571843272,-500.0,0.00020272,2]
[350020852,1737571843281,-500.0,0.00020272,2]
[350020853,1737571843289,-500.0,0.00020272,2]
[350020854,1737571843298,-500.0,0.00020272,2]
[350020855,1737571843308,-500.0,0.00020272,2]
[350020856,1737571843319,-500.0,0.00020272,2]
[350020857,1737571843330,-500.0,0.00020272,2]
[350020858,1737571843339,-500.0,0.00020272,2]
[350020859,1737571843349,-500.0,0.00020272,2]
[350020860,1737571843358,-500.0,0.00020272,2]
[350020861,1737571843367,-500.0,0.00020272,2]